[Event "December 12 Late 2023"]
[Site "https://www.chess.com"]
[Date "2023.12.12"]
[Round "2"]
[White "Golubenko, Valentina"]
[Black "Kraiouchkine, Nikita"]
[Result "1-0"]
[Board "126"]
[TimeControl "180+1"]
[WhiteFideId "4501993"]
[BlackFideId "2607140"]
[WhiteElo "2257"]
[BlackElo "2497"]
[WhiteTeam "CRO"]
[BlackTeam "CAN"]
[WhiteClock "0:00:20"]
[BlackClock "0:00:02"]

1. e4 {[%clk 0:03:00]}  e5 {[%clk 0:02:58]} 2. Nf3 {[%clk 0:02:58]}  Nc6 {[%clk 0:02:57]} 3. c3 {[%clk 0:02:58]}  d5 {[%clk 0:02:57]} 4. exd5 {[%clk 0:02:54]}  Qxd5 {[%clk 0:02:57]} 5. d3 {[%clk 0:02:55]}  Bf5 {[%clk 0:02:48]} 6. c4 {[%clk 0:02:53]}  Qd7 {[%clk 0:02:32]} 7. Nc3 {[%clk 0:02:49]}  O-O-O {[%clk 0:02:30]} 8. Nd5 {[%clk 0:02:45]}  Nge7 {[%clk 0:02:25]} 9. Nh4 {[%clk 0:02:34]}  Nxd5 {[%clk 0:02:09]} 10. Nxf5 {[%clk 0:02:29]}  Qxf5 {[%clk 0:01:46]} 11. cxd5 {[%clk 0:02:28]}  Rxd5 {[%clk 0:01:39]} 12. Be2 {[%clk 0:02:25]}  Kb8 {[%clk 0:01:38]} 13. O-O {[%clk 0:02:23]}  Nd4 {[%clk 0:01:32]} 14. Bg4 {[%clk 0:02:21]}  Qg6 {[%clk 0:01:20]} 15. f4 {[%clk 0:02:17]}  Bc5 {[%clk 0:01:11]} 16. Kh1 {[%clk 0:02:14]}  h5 {[%clk 0:01:11]} 17. Be2 {[%clk 0:01:52]}  e4 {[%clk 0:00:54]} 18. dxe4 {[%clk 0:01:48]}  Qxe4 {[%clk 0:00:50]} 19. Bd3 {[%clk 0:01:29]}  Qe7 {[%clk 0:00:39]} 20. Bd2 {[%clk 0:01:25]}  Rhd8 {[%clk 0:00:21]} 21. Bc4 {[%clk 0:01:24]}  R5d6 {[%clk 0:00:16]} 22. Bc3 {[%clk 0:01:18]}  g6 {[%clk 0:00:12]} 23. Qe1 {[%clk 0:01:17]}  Qxe1 {[%clk 0:00:10]} 24. Raxe1 {[%clk 0:01:16]}  Nc6 {[%clk 0:00:09]} 25. Bxf7 {[%clk 0:01:15]}  Rf8 {[%clk 0:00:09]} 26. Bb3 {[%clk 0:01:10]}  b5 {[%clk 0:00:09]} 27. Bg7 {[%clk 0:01:08]}  Rfd8 {[%clk 0:00:09]} 28. f5 {[%clk 0:01:04]}  g5 {[%clk 0:00:08]} 29. f6 {[%clk 0:01:03]}  Bd4 {[%clk 0:00:08]} 30. Rf5 {[%clk 0:00:58]}  Ne5 {[%clk 0:00:08]} 31. f7 {[%clk 0:00:53]}  Nxf7 {[%clk 0:00:09]} 32. Rxf7 {[%clk 0:00:53]}  Bxg7 {[%clk 0:00:08]} 33. Rxg7 {[%clk 0:00:54]}  c5 {[%clk 0:00:08]} 34. Rxg5 {[%clk 0:00:53]}  Rc6 {[%clk 0:00:09]} 35. Rxh5 {[%clk 0:00:52]}  Kc7 {[%clk 0:00:07]} 36. Bd5 {[%clk 0:00:51]}  Rcd6 {[%clk 0:00:07]} 37. Bf3 {[%clk 0:00:51]}  Kb6 {[%clk 0:00:07]} 38. Rhe5 {[%clk 0:00:48]}  Rd2 {[%clk 0:00:06]} 39. Re6+ {[%clk 0:00:46]}  Ka5 {[%clk 0:00:06]} 40. Re7 {[%clk 0:00:44]}  a6 {[%clk 0:00:05]} 41. R7e5 {[%clk 0:00:44]}  Kb4 {[%clk 0:00:05]} 42. R5e2 {[%clk 0:00:40]}  Rxe2 {[%clk 0:00:04]} 43. Bxe2 {[%clk 0:00:40]}  Rd2 {[%clk 0:00:05]} 44. Bf3 {[%clk 0:00:39]}  Rxb2 {[%clk 0:00:05]} 45. h4 {[%clk 0:00:35]}  c4 {[%clk 0:00:05]} 46. h5 {[%clk 0:00:34]}  Rxa2 {[%clk 0:00:03]} 47. h6 {[%clk 0:00:34]}  Rd2 {[%clk 0:00:03]} 48. h7 {[%clk 0:00:29]}  Rd8 {[%clk 0:00:04]} 49. Bd5 {[%clk 0:00:29]}  Rh8 {[%clk 0:00:03]} 50. Bg8 {[%clk 0:00:29]}  Kc3 {[%clk 0:00:03]} 51. g4 {[%clk 0:00:29]}  Kd2 {[%clk 0:00:03]} 52. Re6 {[%clk 0:00:21]}  c3 {[%clk 0:00:03]} 53. g5 {[%clk 0:00:19]}  c2 {[%clk 0:00:03]} 54. Rc6 {[%clk 0:00:19]}  c1=Q+ {[%clk 0:00:02]} 55. Rxc1 {[%clk 0:00:19]}  Kxc1 {[%clk 0:00:03]} 56. g6 {[%clk 0:00:19]}  b4 {[%clk 0:00:02]} 57. g7 {[%clk 0:00:20]}  Rxh7+ {[%clk 0:00:02]} 58. Bxh7 {[%clk 0:00:20]}  b3 {[%clk 0:00:02]} 59. g8=Q {[%clk 0:00:20]} 1-0

[Event "December 12 Late 2023"]
[Site "https://www.chess.com"]
[Date "2023.12.12"]
[Round "2"]
[White "Cervantes Landeiro, Thalia"]
[Black "Cueto, Jonny"]
[Result "1-0"]
[Board "131"]
[TimeControl "180+1"]
[WhiteFideId "3520498"]
[BlackFideId "3300145"]
[WhiteElo "2478"]
[BlackElo "2226"]
[WhiteTeam "USA"]
[BlackTeam "BOL"]
[WhiteClock "0:01:01"]
[BlackClock "0:00:01"]

1. d4 {[%clk 0:03:00]}  Nf6 {[%clk 0:02:58]} 2. c4 {[%clk 0:03:01]}  d6 {[%clk 0:02:58]} 3. Nc3 {[%clk 0:03:00]}  e5 {[%clk 0:02:57]} 4. d5 {[%clk 0:03:01]}  Bf5 {[%clk 0:02:56]} 5. f3 {[%clk 0:03:01]}  e4 {[%clk 0:02:56]} 6. e3 {[%clk 0:02:54]}  Qe7 {[%clk 0:02:20]} 7. Nge2 {[%clk 0:02:48]}  exf3 {[%clk 0:02:02]} 8. gxf3 {[%clk 0:02:48]}  g6 {[%clk 0:01:53]} 9. Ng3 {[%clk 0:02:42]}  Bd7 {[%clk 0:01:52]} 10. e4 {[%clk 0:02:40]}  h5 {[%clk 0:01:47]} 11. h4 {[%clk 0:02:36]}  Na6 {[%clk 0:01:41]} 12. Bg5 {[%clk 0:02:29]}  Bg7 {[%clk 0:01:25]} 13. Be2 {[%clk 0:02:26]}  Qe5 {[%clk 0:01:16]} 14. f4 {[%clk 0:02:21]}  Qe7 {[%clk 0:01:16]} 15. Rf1 {[%clk 0:02:06]}  Bh6 {[%clk 0:01:01]} 16. Qd4 {[%clk 0:01:34]}  O-O-O {[%clk 0:00:55]} 17. Bxf6 {[%clk 0:01:31]}  Qe8 {[%clk 0:00:42]} 18. Bxh8 {[%clk 0:01:31]}  Nb4 {[%clk 0:00:41]} 19. Qxa7 {[%clk 0:01:28]}  Bh3 {[%clk 0:00:26]} 20. Bf6 {[%clk 0:01:14]}  Bxf1 {[%clk 0:00:06]} 21. Kxf1 {[%clk 0:01:15]}  Na6 {[%clk 0:00:02]} 22. c5 {[%clk 0:01:12]}  Qd7 {[%clk 0:00:01]} 23. Bxa6 {[%clk 0:01:02]}  Qh3+ {[%clk 0:00:01]} 24. Kf2 {[%clk 0:01:02]}  Qh2+ {[%clk 0:00:02]} 25. Kf3 {[%clk 0:01:02]}  bxa6 {[%clk 0:00:01]} 26. Qa8+ {[%clk 0:01:00]}  Kd7 {[%clk 0:00:01]} 27. Qxd8# {[%clk 0:01:01]} 1-0

[Event "December 12 Late 2023"]
[Site "https://www.chess.com"]
[Date "2023.12.12"]
[Round "2"]
[White "Wang, Alexander J"]
[Black "yaguigor"]
[Result "0-1"]
[Board "134"]
[TimeControl "180+1"]
[WhiteFideId "30955270"]
[WhiteElo "2215"]
[BlackElo "2469"]
[WhiteTeam "USA"]
[WhiteClock "0:00:55"]
[BlackClock "0:01:33"]

1. e4 {[%clk 0:02:44]}  c5 {[%clk 0:02:58]} 2. Nf3 {[%clk 0:02:44]}  Nc6 {[%clk 0:02:58]} 3. d4 {[%clk 0:02:44]}  cxd4 {[%clk 0:02:57]} 4. Nxd4 {[%clk 0:02:44]}  Nf6 {[%clk 0:02:57]} 5. Nc3 {[%clk 0:02:45]}  e5 {[%clk 0:02:57]} 6. Nde2 {[%clk 0:02:45]}  Bc5 {[%clk 0:02:56]} 7. Ng3 {[%clk 0:02:43]}  d6 {[%clk 0:02:51]} 8. Bb5 {[%clk 0:02:41]}  Ng4 {[%clk 0:02:47]} 9. O-O {[%clk 0:02:39]}  Qh4 {[%clk 0:02:46]} 10. h3 {[%clk 0:02:19]}  Nxf2 {[%clk 0:02:16]} 11. Rxf2 {[%clk 0:02:12]}  Qxg3 {[%clk 0:02:15]} 12. Qf3 {[%clk 0:02:03]}  Bxf2+ {[%clk 0:02:13]} 13. Qxf2 {[%clk 0:02:02]}  Qxf2+ {[%clk 0:02:12]} 14. Kxf2 {[%clk 0:02:03]}  Be6 {[%clk 0:02:11]} 15. Nd5 {[%clk 0:02:02]}  Rc8 {[%clk 0:02:07]} 16. Be3 {[%clk 0:01:58]}  a6 {[%clk 0:02:03]} 17. Ba4 {[%clk 0:01:54]}  f5 {[%clk 0:01:53]} 18. Nb6 {[%clk 0:01:52]}  Rc7 {[%clk 0:01:45]} 19. Nd5 {[%clk 0:01:38]}  Rf7 {[%clk 0:01:43]} 20. Ke2 {[%clk 0:01:31]}  fxe4 {[%clk 0:01:41]} 21. Nb4 {[%clk 0:01:21]}  Bd7 {[%clk 0:01:37]} 22. Nxc6 {[%clk 0:00:57]}  Bxc6 {[%clk 0:01:36]} 23. Bxc6+ {[%clk 0:00:55]}  bxc6 {[%clk 0:01:37]} 24. Rf1 {[%clk 0:00:55]}  Rxf1 {[%clk 0:01:35]} 25. Kxf1 {[%clk 0:00:55]}  Rf8+ {[%clk 0:01:33]} 0-1

[Event "December 12 Late 2023"]
[Site "https://www.chess.com"]
[Date "2023.12.12"]
[Round "2"]
[White "Medeiros Jr, Francisco De Assis"]
[Black "Manfroi, Alexander Giannini"]
[Result "1-0"]
[Board "137"]
[TimeControl "180+1"]
[WhiteFideId "2114267"]
[BlackFideId "22739335"]
[WhiteElo "2467"]
[BlackElo "2200"]
[WhiteTeam "BRA"]
[BlackTeam "BRA"]
[WhiteClock "0:01:25"]
[BlackClock "0:00:13"]

1. e4 {[%clk 0:02:44]}  e5 {[%clk 0:03:00]} 2. Nf3 {[%clk 0:02:44]}  Nc6 {[%clk 0:03:00]} 3. Bc4 {[%clk 0:02:43]}  Nf6 {[%clk 0:03:01]} 4. d3 {[%clk 0:02:42]}  Bc5 {[%clk 0:03:00]} 5. O-O {[%clk 0:02:40]}  d6 {[%clk 0:03:01]} 6. c3 {[%clk 0:02:37]}  Bg4 {[%clk 0:03:00]} 7. Nbd2 {[%clk 0:02:33]}  a6 {[%clk 0:02:57]} 8. h3 {[%clk 0:02:33]}  Be6 {[%clk 0:02:49]} 9. Bxe6 {[%clk 0:02:34]}  fxe6 {[%clk 0:02:50]} 10. Re1 {[%clk 0:02:34]}  O-O {[%clk 0:02:50]} 11. b4 {[%clk 0:02:29]}  Ba7 {[%clk 0:02:45]} 12. a4 {[%clk 0:02:30]}  d5 {[%clk 0:02:34]} 13. b5 {[%clk 0:02:28]}  axb5 {[%clk 0:02:18]} 14. Ba3 {[%clk 0:02:27]}  dxe4 {[%clk 0:02:00]} 15. Bxf8 {[%clk 0:02:14]}  exf3 {[%clk 0:01:55]} 16. axb5 {[%clk 0:02:11]}  Bxf2+ {[%clk 0:01:22]} 17. Kxf2 {[%clk 0:02:08]}  Rxa1 {[%clk 0:01:15]} 18. Qxa1 {[%clk 0:02:09]}  Qxd3 {[%clk 0:01:13]} 19. Nxf3 {[%clk 0:02:03]}  Nd8 {[%clk 0:00:51]} 20. Be7 {[%clk 0:02:00]}  Ne4+ {[%clk 0:00:42]} 21. Rxe4 {[%clk 0:01:58]}  Qxe4 {[%clk 0:00:38]} 22. Bxd8 {[%clk 0:01:58]}  Qc2+ {[%clk 0:00:36]} 23. Kg1 {[%clk 0:01:58]}  e4 {[%clk 0:00:36]} 24. Ne1 {[%clk 0:01:48]}  Qd2 {[%clk 0:00:28]} 25. Bxc7 {[%clk 0:01:47]}  Qe3+ {[%clk 0:00:23]} 26. Kh2 {[%clk 0:01:46]}  Qf2 {[%clk 0:00:22]} 27. Bg3 {[%clk 0:01:45]}  Qf5 {[%clk 0:00:19]} 28. Qa8+ {[%clk 0:01:44]}  Kf7 {[%clk 0:00:19]} 29. Qxb7+ {[%clk 0:01:44]}  Kg6 {[%clk 0:00:19]} 30. Qc6 {[%clk 0:01:38]}  h5 {[%clk 0:00:19]} 31. Qe8+ {[%clk 0:01:33]}  Kh6 {[%clk 0:00:19]} 32. Qe7 {[%clk 0:01:33]}  g5 {[%clk 0:00:18]} 33. Bd6 {[%clk 0:01:25]}  g4 {[%clk 0:00:13]} 34. Qf8+ {[%clk 0:01:26]}  Qxf8 {[%clk 0:00:13]} 35. Bxf8+ {[%clk 0:01:27]}  Kg5 {[%clk 0:00:14]} 36. h4+ {[%clk 0:01:25]}  Kxh4 {[%clk 0:00:13]} 37. Be7# {[%clk 0:01:25]} 1-0

[Event "December 12 Late 2023"]
[Site "https://www.chess.com"]
[Date "2023.12.12"]
[Round "2"]
[White "Flash_BJ"]
[Black "Serban, Cristian-Stefan"]
[Result "1/2-1/2"]
[Board "138"]
[TimeControl "180+1"]
[BlackFideId "1241443"]
[WhiteElo "2188"]
[BlackElo "2467"]
[BlackTeam "ROU"]
[WhiteClock "0:00:38"]
[BlackClock "0:00:42"]

1. g3 {[%clk 0:03:00]}  Nf6 {[%clk 0:02:58]} 2. Bg2 {[%clk 0:03:00]}  c5 {[%clk 0:02:58]} 3. Nf3 {[%clk 0:02:59]}  Nc6 {[%clk 0:02:58]} 4. O-O {[%clk 0:03:00]}  d5 {[%clk 0:02:58]} 5. d3 {[%clk 0:03:00]}  e6 {[%clk 0:02:58]} 6. Nbd2 {[%clk 0:03:00]}  Be7 {[%clk 0:02:57]} 7. e4 {[%clk 0:03:00]}  O-O {[%clk 0:02:57]} 8. Re1 {[%clk 0:03:00]}  b5 {[%clk 0:02:57]} 9. e5 {[%clk 0:02:54]}  Nd7 {[%clk 0:02:57]} 10. Qe2 {[%clk 0:02:55]}  a5 {[%clk 0:02:57]} 11. Nf1 {[%clk 0:02:53]}  Ba6 {[%clk 0:02:56]} 12. h4 {[%clk 0:02:52]}  c4 {[%clk 0:02:51]} 13. d4 {[%clk 0:02:48]}  b4 {[%clk 0:02:50]} 14. c3 {[%clk 0:02:48]}  a4 {[%clk 0:02:46]} 15. a3 {[%clk 0:02:29]}  bxc3 {[%clk 0:02:45]} 16. bxc3 {[%clk 0:02:29]}  Na5 {[%clk 0:02:46]} 17. Bg5 {[%clk 0:02:26]}  h6 {[%clk 0:02:44]} 18. Bxe7 {[%clk 0:02:26]}  Qxe7 {[%clk 0:02:44]} 19. Reb1 {[%clk 0:02:11]}  Rfb8 {[%clk 0:02:44]} 20. Rb4 {[%clk 0:02:08]}  Nc6 {[%clk 0:02:27]} 21. Rxb8+ {[%clk 0:01:59]}  Rxb8 {[%clk 0:02:28]} 22. N3d2 {[%clk 0:01:48]}  Na5 {[%clk 0:02:26]} 23. Ne3 {[%clk 0:01:42]}  Nb3 {[%clk 0:02:07]} 24. Nxb3 {[%clk 0:01:26]}  Rxb3 {[%clk 0:02:08]} 25. Bxd5 {[%clk 0:01:14]}  exd5 {[%clk 0:02:04]} 26. Nxd5 {[%clk 0:01:14]}  Qe6 {[%clk 0:01:55]} 27. Nc7 {[%clk 0:01:05]}  Qc6 {[%clk 0:01:54]} 28. Nxa6 {[%clk 0:01:03]}  Qxa6 {[%clk 0:01:55]} 29. d5 {[%clk 0:00:59]}  Nf8 {[%clk 0:01:42]} 30. Qe3 {[%clk 0:00:51]}  Qa5 {[%clk 0:01:39]} 31. e6 {[%clk 0:00:46]}  Rxc3 {[%clk 0:00:54]} 32. Qe1 {[%clk 0:00:38]}  fxe6 {[%clk 0:00:42]} 33. dxe6 {[%clk 0:00:38]}  Nxe6 {[%clk 0:00:42]} 34. Qxe6+ {[%clk 0:00:38]}  Kh7 {[%clk 0:00:43]} 35. Qe4+ {[%clk 0:00:37]}  Kg8 {[%clk 0:00:41]} 36. Qe8+ {[%clk 0:00:37]}  Kh7 {[%clk 0:00:41]} 37. Qe4+ {[%clk 0:00:37]}  Kg8 {[%clk 0:00:41]} 38. Qe8+ {[%clk 0:00:38]}  Kh7 {[%clk 0:00:42]} 39. Qe4+ {[%clk 0:00:38]} 1/2-1/2

[Event "December 12 Late 2023"]
[Site "https://www.chess.com"]
[Date "2023.12.12"]
[Round "2"]
[White "Brown, Raehanna"]
[Black "Baches Garcia, Guillermo"]
[Result "0-1"]
[Board "139"]
[TimeControl "180+1"]
[WhiteFideId "7402740"]
[BlackFideId "2209764"]
[WhiteElo "2179"]
[BlackElo "2466"]
[WhiteTeam "JAM"]
[BlackTeam "ESP"]
[WhiteClock "0:00:10"]
[BlackClock "0:00:44"]

1. c4 {[%clk 0:03:00]}  e6 {[%clk 0:02:59]} 2. Nc3 {[%clk 0:02:58]}  d5 {[%clk 0:03:00]} 3. cxd5 {[%clk 0:02:58]}  exd5 {[%clk 0:02:59]} 4. d4 {[%clk 0:02:56]}  a6 {[%clk 0:02:59]} 5. Bf4 {[%clk 0:02:55]}  Nf6 {[%clk 0:02:58]} 6. e3 {[%clk 0:02:55]}  c5 {[%clk 0:02:58]} 7. Nf3 {[%clk 0:02:39]}  c4 {[%clk 0:02:58]} 8. Be2 {[%clk 0:02:35]}  b5 {[%clk 0:02:58]} 9. a3 {[%clk 0:02:34]}  Be7 {[%clk 0:02:58]} 10. O-O {[%clk 0:02:33]}  O-O {[%clk 0:02:58]} 11. b3 {[%clk 0:02:27]}  Bb7 {[%clk 0:02:47]} 12. Qb1 {[%clk 0:02:19]}  Qa5 {[%clk 0:02:32]} 13. Rc1 {[%clk 0:02:11]}  Rc8 {[%clk 0:02:02]} 14. Ne5 {[%clk 0:01:55]}  cxb3 {[%clk 0:01:26]} 15. Qxb3 {[%clk 0:01:50]}  Nc6 {[%clk 0:01:25]} 16. Nxd5 {[%clk 0:01:23]}  Nxd5 {[%clk 0:01:20]} 17. Qxd5 {[%clk 0:01:22]}  Nd8 {[%clk 0:01:20]} 18. Qd7 {[%clk 0:01:12]}  Bf8 {[%clk 0:01:04]} 19. Rxc8 {[%clk 0:00:38]}  Rxc8 {[%clk 0:00:59]} 20. Qe8 {[%clk 0:00:35]}  Qd2 {[%clk 0:00:50]} 21. Nd7 {[%clk 0:00:10]}  Ne6 {[%clk 0:00:44]} 0-1

[Event "December 12 Late 2023"]
[Site "https://www.chess.com"]
[Date "2023.12.12"]
[Round "2"]
[White "Serra Canals, Oriol"]
[Black "Nadera, Barlo A."]
[Result "1-0"]
[Board "140"]
[TimeControl "180+1"]
[WhiteFideId "22276084"]
[BlackFideId "5200598"]
[WhiteElo "2463"]
[BlackElo "2171"]
[WhiteTeam "ESP"]
[BlackTeam "PHI"]
[WhiteClock "0:00:39"]
[BlackClock "0:00:15"]

1. d4 {[%clk 0:03:00]}  d5 {[%clk 0:02:58]} 2. c4 {[%clk 0:03:00]}  e6 {[%clk 0:02:58]} 3. Nc3 {[%clk 0:03:00]}  Nf6 {[%clk 0:02:58]} 4. Nf3 {[%clk 0:02:59]}  c6 {[%clk 0:02:58]} 5. e3 {[%clk 0:02:59]}  Nbd7 {[%clk 0:02:57]} 6. Qc2 {[%clk 0:02:59]}  b6 {[%clk 0:02:54]} 7. b3 {[%clk 0:02:59]}  Bb7 {[%clk 0:02:54]} 8. Bb2 {[%clk 0:02:59]}  Be7 {[%clk 0:02:50]} 9. Be2 {[%clk 0:02:47]}  O-O {[%clk 0:02:49]} 10. O-O {[%clk 0:02:48]}  Rc8 {[%clk 0:02:49]} 11. e4 {[%clk 0:02:48]}  h6 {[%clk 0:02:40]} 12. e5 {[%clk 0:02:47]}  Ne8 {[%clk 0:02:39]} 13. Rad1 {[%clk 0:02:41]}  Nc7 {[%clk 0:02:38]} 14. Ne1 {[%clk 0:02:30]}  f5 {[%clk 0:02:35]} 15. f4 {[%clk 0:02:27]}  Qe8 {[%clk 0:02:33]} 16. Nf3 {[%clk 0:02:26]}  g5 {[%clk 0:02:17]} 17. fxg5 {[%clk 0:02:19]}  hxg5 {[%clk 0:02:17]} 18. Bc1 {[%clk 0:02:19]}  g4 {[%clk 0:02:08]} 19. Ng5 {[%clk 0:02:19]}  Qg6 {[%clk 0:02:07]} 20. h4 {[%clk 0:02:15]}  gxh3 {[%clk 0:01:46]} 21. Nxh3 {[%clk 0:02:15]}  c5 {[%clk 0:01:35]} 22. Nf4 {[%clk 0:02:02]}  Qf7 {[%clk 0:01:30]} 23. Bh5 {[%clk 0:02:01]}  Qh7 {[%clk 0:01:26]} 24. cxd5 {[%clk 0:01:54]}  Nxd5 {[%clk 0:01:03]} 25. Ncxd5 {[%clk 0:01:52]}  exd5 {[%clk 0:01:00]} 26. Qf2 {[%clk 0:01:39]}  cxd4 {[%clk 0:00:56]} 27. Qg3+ {[%clk 0:01:39]}  Qg7 {[%clk 0:00:55]} 28. Qxg7+ {[%clk 0:01:37]}  Kxg7 {[%clk 0:00:55]} 29. Ne6+ {[%clk 0:01:38]}  Kh7 {[%clk 0:00:55]} 30. Nxf8+ {[%clk 0:01:39]}  Rxf8 {[%clk 0:00:54]} 31. e6 {[%clk 0:01:16]}  Nc5 {[%clk 0:00:40]} 32. Bf7 {[%clk 0:01:16]}  Ne4 {[%clk 0:00:38]} 33. Rxf5 {[%clk 0:01:09]}  Kg7 {[%clk 0:00:29]} 34. Rh5 {[%clk 0:01:00]}  Rc8 {[%clk 0:00:25]} 35. Bh6+ {[%clk 0:00:47]}  Kh7 {[%clk 0:00:15]} 36. Bf8# {[%clk 0:00:39]} 1-0

[Event "December 12 Late 2023"]
[Site "https://www.chess.com"]
[Date "2023.12.12"]
[Round "2"]
[White "Michalski, Olaf"]
[Black "Mazurkiewicz, Michal"]
[Result "0-1"]
[Board "142"]
[TimeControl "180+1"]
[WhiteFideId "1106740"]
[BlackFideId "1124943"]
[WhiteElo "2170"]
[BlackElo "2458"]
[WhiteTeam "POL"]
[BlackTeam "POL"]
[WhiteClock "0:00:00"]
[BlackClock "0:00:25"]

1. d4 {[%clk 0:03:00]}  e5 {[%clk 0:02:56]} 2. dxe5 {[%clk 0:02:59]}  Nc6 {[%clk 0:02:56]} 3. Nf3 {[%clk 0:02:59]}  Bc5 {[%clk 0:02:51]} 4. Bf4 {[%clk 0:02:52]}  Nge7 {[%clk 0:02:35]} 5. e3 {[%clk 0:02:45]}  Ng6 {[%clk 0:02:35]} 6. Bg3 {[%clk 0:02:45]}  Qe7 {[%clk 0:02:35]} 7. Qd5 {[%clk 0:02:30]}  O-O {[%clk 0:02:28]} 8. Bd3 {[%clk 0:02:10]}  Nb4 {[%clk 0:02:14]} 9. Qb3 {[%clk 0:02:10]}  Nxd3+ {[%clk 0:02:12]} 10. cxd3 {[%clk 0:02:06]}  a5 {[%clk 0:01:58]} 11. O-O {[%clk 0:01:59]}  a4 {[%clk 0:01:58]} 12. Qc2 {[%clk 0:01:57]}  b5 {[%clk 0:01:42]} 13. Nc3 {[%clk 0:01:57]}  c6 {[%clk 0:01:41]} 14. Ne4 {[%clk 0:01:51]}  Bb6 {[%clk 0:01:39]} 15. Nd6 {[%clk 0:01:46]}  Ba6 {[%clk 0:01:38]} 16. h4 {[%clk 0:01:29]}  Bc7 {[%clk 0:01:37]} 17. d4 {[%clk 0:01:04]}  h5 {[%clk 0:01:37]} 18. Ng5 {[%clk 0:00:56]}  b4 {[%clk 0:01:30]} 19. Rfe1 {[%clk 0:00:43]}  Bxd6 {[%clk 0:01:28]} 20. exd6 {[%clk 0:00:42]}  Qf6 {[%clk 0:01:29]} 21. e4 {[%clk 0:00:34]}  Qxd4 {[%clk 0:01:26]} 22. Rad1 {[%clk 0:00:31]}  Qc4 {[%clk 0:01:22]} 23. Qb1 {[%clk 0:00:21]}  b3 {[%clk 0:01:20]} 24. axb3 {[%clk 0:00:19]}  axb3 {[%clk 0:01:21]} 25. e5 {[%clk 0:00:19]}  Qc2 {[%clk 0:01:21]} 26. Qc1 {[%clk 0:00:07]}  Qxc1 {[%clk 0:01:19]} 27. Rxc1 {[%clk 0:00:07]}  Bd3 {[%clk 0:01:17]} 28. Re3 {[%clk 0:00:05]}  Bc2 {[%clk 0:01:16]} 29. f4 {[%clk 0:00:05]}  Rfb8 {[%clk 0:01:14]} 30. Rf1 {[%clk 0:00:04]}  Bf5 {[%clk 0:01:14]} 31. Ne4 {[%clk 0:00:02]}  Ra2 {[%clk 0:01:06]} 32. Rf2 {[%clk 0:00:02]}  Rb4 {[%clk 0:01:03]} 33. Nc5 {[%clk 0:00:02]}  Bc2 {[%clk 0:00:45]} 34. f5 {[%clk 0:00:02]}  Nxh4 {[%clk 0:00:44]} 35. Bxh4 {[%clk 0:00:01]}  Rxh4 {[%clk 0:00:44]} 36. e6 {[%clk 0:00:01]}  fxe6 {[%clk 0:00:26]} 37. fxe6 {[%clk 0:00:01]}  dxe6 {[%clk 0:00:25]} 38. d7 {[%clk 0:00:01]}  Ra1+ {[%clk 0:00:25]} 39. Rf1 {[%clk 0:00:00]}  Rxf1+ {[%clk 0:00:25]} 0-1

[Event "December 12 Late 2023"]
[Site "https://www.chess.com"]
[Date "2023.12.12"]
[Round "2"]
[White "Demina, Marya"]
[Black "Nilsson, Joakim"]
[Result "1/2-1/2"]
[Board "144"]
[TimeControl "180+1"]
[WhiteFideId "4195671"]
[BlackFideId "1723383"]
[WhiteElo "2137"]
[BlackElo "2457"]
[WhiteTeam "RUS"]
[BlackTeam "SWE"]
[WhiteClock "0:01:36"]
[BlackClock "0:01:55"]

1. d4 {[%clk 0:02:58]}  e6 {[%clk 0:02:57]} 2. Nf3 {[%clk 0:02:58]}  f5 {[%clk 0:02:58]} 3. Bg5 {[%clk 0:02:56]}  Nf6 {[%clk 0:02:57]} 4. e3 {[%clk 0:02:56]}  b6 {[%clk 0:02:56]} 5. c3 {[%clk 0:02:54]}  Bb7 {[%clk 0:02:56]} 6. Nbd2 {[%clk 0:02:55]}  Be7 {[%clk 0:02:56]} 7. Bd3 {[%clk 0:02:53]}  O-O {[%clk 0:02:57]} 8. Qe2 {[%clk 0:02:53]}  Ne4 {[%clk 0:02:57]} 9. Bxe7 {[%clk 0:02:50]}  Qxe7 {[%clk 0:02:58]} 10. g4 {[%clk 0:02:27]}  Nxd2 {[%clk 0:02:54]} 11. Nxd2 {[%clk 0:02:27]}  Bxh1 {[%clk 0:02:53]} 12. O-O-O {[%clk 0:02:18]}  Bb7 {[%clk 0:02:51]} 13. gxf5 {[%clk 0:02:17]}  exf5 {[%clk 0:02:52]} 14. Rg1 {[%clk 0:02:17]}  Nc6 {[%clk 0:02:46]} 15. Nf3 {[%clk 0:02:09]}  Rae8 {[%clk 0:02:45]} 16. Ng5 {[%clk 0:02:07]}  Rf6 {[%clk 0:02:21]} 17. Bc4+ {[%clk 0:01:57]}  Kh8 {[%clk 0:02:20]} 18. Qh5 {[%clk 0:01:54]}  g6 {[%clk 0:02:03]} 19. Qh4 {[%clk 0:01:54]}  Na5 {[%clk 0:02:00]} 20. Nxh7 {[%clk 0:01:49]}  Qxh7 {[%clk 0:01:53]} 21. Qxf6+ {[%clk 0:01:49]}  Qg7 {[%clk 0:01:54]} 22. Qh4+ {[%clk 0:01:38]}  Qh7 {[%clk 0:01:54]} 23. Qf6+ {[%clk 0:01:37]}  Qg7 {[%clk 0:01:54]} 24. Qh4+ {[%clk 0:01:37]}  Qh7 {[%clk 0:01:55]} 25. Qf6+ {[%clk 0:01:36]} 1/2-1/2